Workbook

Sheet MSS
B1: Joel Niemi | E1: 1.12.2000 Helsinki
B2: YKKÖSPESIS | E2: Runkosarja | L2: Runkosarja TOP-10 | Q2: Jatkosarjat | X2: SUOMENSARJA | AA2: Runkosarja | AH2: Runkosarja TOP-10 | AM2: Jatkosarjat
B3: Vuosi | C3: Sija | D3: Seura | E3: OTT | F3: KUN | G3: LÖI | H3: TOI | I3: KL | J3: KL-% | L3: LÖI | M3: TOI | N3: L+T | O3: KL | Q3: OTT | R3: KUN | S3: LÖI | T3: TOI | U3: KL | V3: KL-% | X3: Vuosi | Y3: Sija | Z3: Seura | AA3: OTT | AB3: KUN | AC3: LÖI | AD3: TOI | AE3: KL | AF3: KL-% | AH3: LÖI | AI3: TOI | AJ3: L+T | AK3: KL | AM3: OTT | AN3: KUN | AO3: LÖI | AP3: TOI | AQ3: KL | AR3: KL-%
X4: 2018 | Y4: 2. | Z4: PuMu | AA4: 14 | AB4: 1 | AC4: 3 | AD4: 12 | AE4: 34 | AF4: 49.3 % | AG4: =PRODUCT(AE4/AF4) -> 69 | AM4: 2 | AN4: 0 | AO4: 0 | AP4: 0 | AQ4: 2 | AR4: 20.0 % | AS4: =PRODUCT(AQ4/AR4) -> 10
X5: 2019 | Y5: 2. | Z5: PuMu | AA5: 12 | AB5: 0 | AC5: 1 | AD5: 7 | AE5: 27 | AF5: 43.5 % | AG5: 62 | AM5: 5 | AN5: 0 | AO5: 1 | AP5: 2 | AQ5: 11 | AR5: 44.0 % | AS5: 25
X6: 2020 | Y6: 3. | Z6: PuMu | AA6: 3 | AB6: 0 | AC6: 0 | AD6: 4 | AE6: 10 | AF6: 66.7 % | AG6: 15
X7: 2021 | Y7: 2. | Z7: PuMu | AA7: 17 | AB7: 0 | AC7: 3 | AD7: 24 | AE7: 74 | AF7: 54.8 % | AG7: 135 | AM7: 2 | AN7: 0 | AO7: 0 | AP7: 0 | AQ7: 8 | AR7: 57.1 % | AS7: 14
X8: 2022 | Y8: 1. | Z8: PuMu | AA8: 18 | AB8: 1 | AC8: 4 | AD8: 41 | AE8: 70 | AF8: 57.9 % | AG8: 121 | AI8: 3. | AM8: 7 | AN8: 0 | AO8: 0 | AP8: 8 | AQ8: 20 | AR8: 54.1 % | AS8: 37
X9: 2023 | Y9: 1. | Z9: PuMu | AA9: 7 | AB9: 0 | AC9: 0 | AD9: 14 | AE9: 31 | AF9: 53.4 % | AG9: 58 | AM9: 7 | AN9: 0 | AO9: 0 | AP9: 9 | AQ9: 27 | AR9: 57.5 % | AS9: 47
B10: YHTEENSÄ | E10: =SUM(E9:E9) -> 0 | F10: =SUM(F9:F9) -> 0 | G10: =SUM(G9:G9) -> 0 | H10: =SUM(H9:H9) -> 0 | I10: =SUM(I9:I9) -> 0 | J10: 0.0 % | K10: =SUM(K9:K9) -> 0 | Q10: =SUM(Q9:Q9) -> 0 | R10: =SUM(R9:R9) -> 0 | S10: =SUM(S9:S9) -> 0 | T10: =SUM(T9:T9) -> 0 | U10: =SUM(U9:U9) -> 0 | V10: 0.0 % | W10: =SUM(W9:W9) -> 0 | X10: YHTEENSÄ | AA10: =SUM(AA4:AA9) -> 71 | AB10: =SUM(AB4:AB9) -> 2 | AC10: 11 | AD10: 102 | AE10: 246 | AF10: =PRODUCT(AE10/AG10) -> 53.5 % | AG10: =SUM(AG4:AG9) -> 460 | AM10: =SUM(AM4:AM9) -> 23 | AN10: =SUM(AN4:AN9) -> 0 | AO10: =SUM(AO4:AO9) -> 1 | AP10: =SUM(AP4:AP9) -> 19 | AQ10: =SUM(AQ4:AQ9) -> 68 | AR10: =PRODUCT(AQ10/AS10) -> 51.1 % | AS10: =SUM(AS4:AS9) -> 133
B12: KAIKKI OTTELUT | E12: OTT | F12: KUN | G12: LÖI | H12: TOI | I12: KL | J12: KL-% | L12: ka/L | M12: ka/T | N12: ka/l+t | O12: ka/kl | R12: Seurat | T12: PuMu = Helsingin Puna-Mustat (1941), kasvattajaseura
B13: SUPERPESIS | E13: 0 | F13: 0 | G13: 0 | H13: 0 | I13: 0 | J13: 0.0 % | K13: 0 | L13: 0.00 | M13: 0.00 | N13: 0.00 | O13: 0.00
B14: YKKÖSPESIS | E14: =PRODUCT(E10+Q10) -> 0 | F14: =PRODUCT(F10+R10) -> 0 | G14: =PRODUCT(G10+S10) -> 0 | H14: =PRODUCT(H10+T10) -> 0 | I14: =PRODUCT(I10+U10) -> 0 | J14: 0.0 % | K14: =PRODUCT(K10+W10) -> 0 | L14: 0.00 | M14: 0.00 | N14: 0.00 | O14: 0.00
B15: SUOMENSARJA | E15: =PRODUCT(AA10+AM10) -> 94 | F15: =PRODUCT(AB10+AN10) -> 2 | G15: =PRODUCT(AC10+AO10) -> 12 | H15: =PRODUCT(AD10+AP10) -> 121 | I15: =PRODUCT(AE10+AQ10) -> 314 | J15: =PRODUCT(I15/K15) -> 53.0 % | K15: =PRODUCT(AG10+AS10) -> 593.0075096 | L15: =PRODUCT((F15+G15)/E15) -> 0.15 | M15: =PRODUCT(H15/E15) -> 1.29 | N15: =PRODUCT((F15+G15+H15)/E15) -> 1.44 | O15: =PRODUCT(I15/E15) -> 3.34
B16: YHTEENSÄ | E16: =SUM(E13:E15) -> 94 | F16: =SUM(F13:F15) -> 2 | G16: 12 | H16: 121 | I16: 314 | J16: =PRODUCT(I16/K16) -> 53.0 % | K16: =SUM(K13:K15) -> 593.0075096 | L16: =PRODUCT((F16+G16)/E16) -> 0.15 | M16: =PRODUCT(H16/E16) -> 1.29 | N16: =PRODUCT((F16+G16+H16)/E16) -> 1.44 | O16: =PRODUCT(I16/E16) -> 3.34
